Workbook

Sheet Page 19, middle
A1: COMPUTING THE PRESENT VALUE OF A FINITE GROWING ORDINARY ANNUITY
A2: First payment, end of period, C | B2: 1000
A3: Growth rate of payments, g | B3: 0.06 | C3: Try each of the 3 scenarios!
A4: Number of future periods paid, n | B4: 5 | F4: =TRANSPOSE(B10:B14) -> 1000 | G4: 1060 | H4: 1123.6 | I4: 1191.016 | J4: 1262.47696
A5: Discount rate, r | B5: 0.12 | E5: ! | F5: ! | G5: ! | H5: ! | I5: ! | J5: !
A6: Present value of annuity | E6: 0 | F6: =1+E6 -> 1 | G6: =1+F6 -> 2 | H6: 3 | I6: 4 | J6: 5 | K6: Years
A7: Using formula | B7: =B2*(1-((1+B3)/(1+B5))^B4)/(B5-B3) -> 4010.914471 | C7: =getformula(B7) -> <-- =B2*(1-((1+B3)/(1+B5))^B4)/(B5-B3) | E7: <-- Algebraic Formula: Does not work when r=g!
A9: End of Period | B9: Annuity Payment | D9: Payment PV | E9: When does the pattern of values in D10:D14 increase/decrease/stay same?
A10: 1 | B10: =B2 -> 1000 | C10: =getformula(B10) -> <-- =B2 | D10: =B10*(1+$B$5)^-A10 -> 892.8571429 | E10: =getformula(D10) -> <-- =B10*(1+$B$5)^-A10
A11: 2 | B11: =$B$2*(1+$B$3)^(A11-1) -> 1060 | C11: =getformula(B11) -> <-- =$B$2*(1+$B$3)^(A11-1) | D11: =B11*(1+$B$5)^-A11 -> 845.0255102 | E11: <-- =B11*(1+$B$5)^-A11
A12: 3 | B12: =$B$2*(1+$B$3)^(A12-1) -> 1123.6 | C12: =getformula(B12) -> <-- =$B$2*(1+$B$3)^(A12-1) | D12: 799.7562864 | E12: <-- =B12*(1+$B$5)^-A12
A13: 4 | B13: =$B$2*(1+$B$3)^(A13-1) -> 1191.016 | C13: =getformula(B13) -> <-- =$B$2*(1+$B$3)^(A13-1) | D13: 756.9121997 | E13: <-- =B13*(1+$B$5)^-A13
A14: 5 | B14: =$B$2*(1+$B$3)^(A14-1) -> 1262.47696 | C14: =getformula(B14) -> <-- =$B$2*(1+$B$3)^(A14-1) | D14: 716.3633318 | E14: <-- =B14*(1+$B$5)^-A14
A15: Sum | B15: =SUM(B10:B14) -> 5637.09296
A16: Present value using Excel's NPV function | B16: =NPV(B5,B10:B14) -> 4010.914471 | C16: =getformula(B16) -> <-- =NPV(B5,B10:B14) | D16: =SUM(D10:D14) -> 4010.914471 | E16: <-- =SUM(D10:D14)
A19: Equivalent value payment at end period 3 | B19: =B10*(1+B5)^2+B11*(1+B5)+B12+B13*(1+B5)^-1+B14*(1+B5)^-2 -> 5635.046046 | C19: =getformula(B19) -> <-- =B10*(1+B5)^2+B11*(1+B5)+B12+B13*(1+B5)^-1+B14*(1+B5)^-2
A20: Equivalent value payment at end period 0 | B20: =B19/(1+B5)^3 -> 4010.914471 | C20: =getformula(B20)&": Discount value at end of period 3" -> <-- =B19/(1+B5)^3: Discount value at end of period 3
A21: Equivalent value payment at end period 5 | B21: =B20*(1+B5)^5 -> 7068.60176 | C21: =getformula(B21)&": Compound PV 5 periods" -> <-- =B20*(1+B5)^5: Compound PV 5 periods
C23: All 3 of these values are the same considering their timing!
